fUSD/lending_fUSD_20250417
["ID","MTS","AMOUNT","RATE_DAILY","PERIOD"]
[358276998,1744891854748,-500.0,0.00177729,120]
[358276999,1744891854757,-500.0,0.00177729,120]
[358277000,1744891854767,-500.0,0.00177729,120]
[358277001,1744891854777,-500.0,0.00177729,120]
[358277002,1744891854787,-589.73311,0.00177729,120]
[358277003,1744891854797,-678.97,0.00177729,120]
[358277004,1744891854807,-635.88,0.00177729,120]
[358277005,1744891854816,-774.58,0.00177729,120]
[358277006,1744891854826,-12698.62,0.00177729,120]
[358277007,1744891854836,-450.02510732,0.00177729,120]
[358277008,1744891854845,-500.0,0.00177729,120]
[358277009,1744891854855,-500.0,0.00177729,120]
[358277010,1744891854865,-500.0,0.0017941,120]
[358277011,1744891854875,-602.7,0.0017941,120]
[358277012,1744891854884,-500.0,0.0017941,120]
[358277013,1744891854894,-500.0,0.0017941,120]
[358277014,1744891854904,-500.0,0.0017941,120]
[358277015,1744891854914,-663.84,0.00179423,120]
[358277016,1744891854924,-5119.97873607,0.00179905,15]
[358277017,1744891854934,-362.21129326,0.00179999,60]
[358277018,1744891854944,-50000.0,0.0018,120]
[358277019,1744891854955,-532.82884975,0.0018,120]
[358277020,1744891854965,-1300.0,0.0018,2]
[358277021,1744891854975,-500.0,0.00181038,120]
[358277022,1744891854985,-706.29,0.00181038,2]
[358277023,1744891854994,-511.54,0.00181038,120]
[358277024,1744891855004,-15584.00337737,0.00181061,60]
[358277025,1744891855014,-2142.56,0.00181061,120]
[358277026,1744891855023,-622.26,0.00181061,120]
[358277027,1744891855032,-1300.79,0.00181061,120]
[358277028,1744891855042,-500.0,0.00181061,120]
[358277029,1744891855051,-500.0,0.00185161,120]
[358277030,1744891855060,-500.0,0.00185161,120]
[358277031,1744891855070,-617.79,0.00185161,120]
[358277032,1744891855080,-637.48,0.00185161,120]
[358277033,1744891855090,-224.25,0.00185161,120]
[358277034,1744891855099,-357.28821531,0.00185161,120]
[358277035,1744891855109,-500.0,0.00185161,120]
[358277036,1744891855119,-500.0,0.00185161,120]
[358277037,1744891855129,-500.0,0.00185161,120]
[358277038,1744891855139,-296.98,0.00185161,120]
[358277039,1744891855148,-367.724251,0.00185161,120]
[358277040,1744891855157,-500.0,0.00185161,120]
[358277041,1744891855167,-500.0,0.00185161,120]
[358277042,1744891855178,-500.0,0.00185161,120]
[358277043,1744891855187,-500.0,0.00185161,120]
[358277044,1744891855197,-500.0,0.00185161,120]
[358277045,1744891855206,-352.72986804,0.00185948,90]
[358277046,1744891855216,-500.0,0.00185949,120]
[358277047,1744891855225,-500.0,0.00185949,120]
[358277048,1744891855235,-500.0,0.00185949,120]
[358277049,1744891855244,-500.0,0.00185949,120]
[358277050,1744891855253,-500.0,0.00185949,120]
[358277051,1744891855263,-690.25,0.00185949,120]
[358277052,1744891855272,-500.0,0.00185949,120]
[358277053,1744891855282,-502.62,0.00185949,120]
[358277054,1744891855291,-500.0,0.00185949,120]
[358277055,1744891855301,-899.89,0.00185949,120]
[358277056,1744891855311,-537.87,0.00185949,120]
[358277057,1744891855321,-710.63,0.00185949,120]
[358277058,1744891855331,-2098.72,0.00185949,120]
[358277059,1744891855341,-16975.05,0.00185949,7]
[358277060,1744891855351,-709.02,0.00185949,120]
[358277061,1744891855362,-1352.71,0.00185949,120]
[358277062,1744891855372,-231.52245313,0.00185949,120]
[358277063,1744891855381,-500.0,0.00185949,120]
[358277064,1744891855391,-500.0,0.00185949,120]
[358277065,1744891855400,-500.0,0.00185949,120]
[358277066,1744891855410,-500.0,0.00185949,120]
[358277067,1744891855420,-678.97,0.00185949,120]
[358277068,1744891855429,-635.88,0.00185949,120]
[358277069,1744891855438,-774.58,0.00185949,120]
[358277070,1744891855448,-12698.62,0.00185949,120]
[358277071,1744891855458,-500.0,0.00185949,120]
[358277072,1744891855467,-500.0,0.00185949,120]
[358277073,1744891855477,-500.0,0.00187629,120]
[358277074,1744891855486,-602.7,0.00187629,120]
[358277075,1744891855496,-500.0,0.00187629,120]
[358277076,1744891855505,-500.0,0.00187629,120]
[358277077,1744891855516,-500.0,0.00187629,120]
[358277078,1744891855532,-3257.95724272,0.00187891,15]
[358277079,1744891855542,-2995.16,0.00188,60]
[358277080,1744891855552,-500.0,0.00189257,120]
[358277081,1744891855562,-706.29,0.00189257,2]
[358277082,1744891855572,-511.54,0.00189257,120]
[358277083,1744891855582,-2142.56,0.0018928,120]
[358277084,1744891855592,-622.26,0.0018928,120]
[358277085,1744891855604,-1300.79,0.0018928,120]
[358277086,1744891855614,-500.0,0.0018928,120]
[358277087,1744891855624,-500.0,0.0019178,120]
[358277088,1744891855634,-500.0,0.0019178,120]
[358277089,1744891855643,-500.0,0.0019178,120]
[358277090,1744891855653,-495.002,0.0019178,120]
[358277091,1744891855663,-500.0,0.0019178,120]
[358277092,1744891855672,-459.92,0.00193381,120]
[358277093,1744891855682,-500.0,0.00193381,120]
[358277094,1744891855691,-637.48,0.00193381,120]
[358277095,1744891855701,-500.0,0.00193381,120]
[358277096,1744891855710,-491.79,0.00193381,120]
[358277097,1744891855720,-355.32,0.00193381,120]
[358277098,1744891855729,-500.0,0.00193381,120]
[358277099,1744891855741,-174.82,0.00193381,120]
[358277100,1744891855751,-394.95,0.00193381,120]
[358277101,1744891855761,-500.0,0.00193381,120]
[358277102,1744891855771,-500.0,0.00193381,120]
[358277103,1744891855780,-500.0,0.00194168,120]
[358277104,1744891855789,-500.0,0.00194168,120]
[358277105,1744891855799,-500.0,0.00194168,120]
[358277106,1744891855809,-500.0,0.00194168,120]
[358277107,1744891855819,-500.0,0.00194168,120]
[358277108,1744891855829,-690.25,0.00194168,120]
[358277109,1744891855840,-500.0,0.00194168,120]
[358277110,1744891855849,-502.62,0.00194168,120]
[358277111,1744891855859,-500.0,0.00194168,120]
[358277112,1744891855868,-899.89,0.00194168,120]
[358277113,1744891855878,-537.87,0.00194168,120]
[358277114,1744891855888,-710.63,0.00194168,120]
[358277115,1744891855897,-2098.72,0.00194168,120]
[358277116,1744891855907,-16975.05,0.00194168,7]
[358277117,1744891855916,-709.02,0.00194168,120]
[358277118,1744891855927,-1352.71,0.00194168,120]
[358277119,1744891855937,-500.0,0.00194168,120]
[358277120,1744891855947,-500.0,0.00194168,120]
[358277121,1744891855957,-257.808055,0.00194168,120]
[358277122,1744891855967,-500.0,0.00194168,120]
[358277123,1744891855977,-678.97,0.00194168,120]
[358277124,1744891855987,-635.88,0.00194168,120]
[358277125,1744891855996,-774.58,0.00194168,120]
[358277126,1744891856006,-12698.62,0.00194168,120]
[358277127,1744891856015,-500.0,0.00194168,120]
[358277128,1744891856024,-500.0,0.00194168,120]
[358277129,1744891856034,-27406.0692783,0.00195116,60]
[358277130,1744891856044,-644.43924735,0.00195848,120]
[358277131,1744891856053,-602.7,0.00195848,120]
[358277132,1744891856062,-303.0038152,0.00195848,120]
[358277133,1744891856072,-500.0,0.00195848,120]
[358277134,1744891856082,-500.0,0.00195848,120]
[358277135,1744891856092,-166.15,0.0019726,120]
[358277136,1744891856101,-166.15,0.0019726,120]
[358277137,1744891856111,-166.15,0.0019726,120]
[358277138,1744891856120,-166.15,0.0019726,120]
[358277139,1744891856130,-166.15,0.0019726,120]
[358277140,1744891856139,-166.15,0.0019726,120]
[358277141,1744891856148,-500.0,0.00197476,120]
[358277142,1744891856158,-706.29,0.00197476,2]
[358277143,1744891856166,-511.54,0.00197476,120]
[358277144,1744891856176,-2142.56,0.00197499,120]
[358277145,1744891856184,-622.26,0.00197499,120]
[358277146,1744891856193,-1300.79,0.00197499,120]
[358277147,1744891856200,-500.0,0.00197499,120]
[358277148,1744891856209,-663.84,0.00197987,120]
[358277149,1744891856218,-301.71229768,0.00199999,120]
[358277150,1744891856227,-300.50464156,0.00199999,120]
[358277151,1744891856236,-50000.0,0.002,120]
[358277152,1744891856246,-500.0,0.002,120]
[358277153,1744891856255,-152.32,0.002,2]
[358277154,1744891856264,-10000.0,0.002,120]
[358277155,1744891856273,-1000.0,0.002,120]
[358277156,1744891856282,-500.0,0.002016,120]
[358277157,1744891856291,-637.48,0.002016,120]
[358277158,1744891856301,-500.0,0.002016,120]
[358277159,1744891856310,-500.0,0.002016,120]
[358277160,1744891856319,-500.0,0.002016,120]
[358277161,1744891856329,-500.0,0.002016,120]
[358277162,1744891856338,-500.0,0.00202387,120]
[358277163,1744891856348,-500.0,0.00202387,120]
[358277164,1744891856358,-500.0,0.00202387,120]
[358277165,1744891856367,-500.0,0.00202387,120]
[358277166,1744891856376,-500.0,0.00202387,120]
[358277167,1744891856386,-690.25,0.00202387,120]
[358277168,1744891856395,-500.0,0.00202387,120]
[358277169,1744891856405,-502.62,0.00202387,120]
[358277170,1744891856414,-500.0,0.00202387,120]
[358277171,1744891856423,-899.89,0.00202387,120]
[358277172,1744891856432,-537.87,0.00202387,120]
[358277173,1744891856442,-710.63,0.00202387,120]
[358277174,1744891856451,-2098.72,0.00202387,120]
[358277175,1744891856461,-16975.05,0.00202387,7]
[358277176,1744891856470,-709.02,0.00202387,120]
[358277177,1744891856480,-1352.71,0.00202387,120]
[358277178,1744891856489,-500.0,0.00202387,120]
[358277179,1744891856498,-500.0,0.00202387,120]
[358277180,1744891856508,-500.0,0.00202387,120]
[358277181,1744891856518,-678.97,0.00202387,120]
[358277182,1744891856531,-635.88,0.00202387,120]
[358277183,1744891856540,-774.58,0.00202387,120]
[358277184,1744891856549,-12698.62,0.00202387,120]
[358277185,1744891856559,-595.49000001,0.00202387,120]
[358277186,1744891856568,-360.63139429,0.00202387,120]
[358277187,1744891856578,-800.0,0.002039,74]
[358277188,1744891856587,-602.7,0.00204067,120]
[358277189,1744891856596,-500.0,0.00204067,120]
[358277190,1744891856605,-500.0,0.00204067,120]
[358277191,1744891856614,-500.0,0.00205695,120]
[358277192,1744891856624,-706.29,0.00205695,2]
[358277193,1744891856633,-511.54,0.00205695,120]
[358277194,1744891856642,-2142.56,0.00205718,120]
[358277195,1744891856652,-622.26,0.00205718,120]
[358277196,1744891856661,-1300.79,0.00205718,120]
[358277197,1744891856671,-500.0,0.00205718,120]
[358277198,1744891856680,-500.0,0.00209819,120]
[358277199,1744891856690,-637.48,0.00209819,120]
[358277200,1744891856699,-500.0,0.00209819,120]
[358277201,1744891856708,-500.0,0.00209819,120]
[358277202,1744891856718,-500.0,0.00209819,120]
[358277203,1744891856727,-253.84,0.00209819,120]
[358277204,1744891856737,-1000.0,0.0021,120]
[358277205,1744891856746,-500.0,0.00210606,120]
[358277206,1744891856760,-500.0,0.00210606,120]
[358277207,1744891856770,-500.0,0.00210606,120]
[358277208,1744891856780,-226.44251271,0.00210606,120]
[358277209,1744891856789,-500.0,0.00210606,120]
[358277210,1744891856799,-690.25,0.00210606,120]
[358277211,1744891856808,-566.00291962,0.00210606,120]
[358277212,1744891856818,-502.62,0.00210606,120]
[358277213,1744891856829,-500.0,0.00210606,120]
[358277214,1744891856838,-899.89,0.00210606,120]
[358277215,1744891856848,-537.87,0.00210606,120]
[358277216,1744891856858,-710.63,0.00210606,120]
[358277217,1744891856867,-2098.72,0.00210606,120]
[358277218,1744891856878,-16975.05,0.00210606,7]
[358277219,1744891856888,-709.02,0.00210606,120]
[358277220,1744891856898,-1352.71,0.00210606,120]
[358277221,1744891857015,-500.0,0.00210606,120]
[358277222,1744891857026,-500.0,0.00210606,120]
[358277223,1744891857037,-500.0,0.00210606,120]
[358277224,1744891857048,-678.97,0.00210606,120]
[358277225,1744891857059,-635.88,0.00210606,120]
[358277226,1744891857069,-774.58,0.00210606,120]
[358277227,1744891857080,-12698.62,0.00210606,120]
[358277228,1744891857090,-602.7,0.00212287,120]
[358277229,1744891857099,-591.77018417,0.00212287,120]
[358277230,1744891857109,-500.0,0.00212287,120]
[358277231,1744891857119,-500.0,0.00213914,120]
[358277232,1744891857129,-706.29,0.00213914,2]
[358277233,1744891857138,-511.54,0.00213914,120]
[358277234,1744891857148,-2142.56,0.00213937,120]
[358277235,1744891857158,-622.26,0.00213937,120]
[358277236,1744891857167,-1300.79,0.00213937,120]
[358277237,1744891857180,-500.0,0.00213937,120]
[358277238,1744891857190,-663.84,0.00218037,120]
[358277239,1744891857199,-500.0,0.00218038,120]
[358277240,1744891857209,-637.48,0.00218038,120]
[358277241,1744891857218,-574.04,0.00218038,120]
[358277242,1744891857227,-500.0,0.00218038,120]
[358277243,1744891857237,-500.0,0.00218825,120]
[358277244,1744891857247,-500.0,0.00218825,120]
[358277245,1744891857256,-500.0,0.00218825,120]
[358277246,1744891857266,-464.35754206,0.00218825,120]
[358277247,1744891857276,-690.25,0.00218825,120]
[358277248,1744891857286,-502.62,0.00218825,120]
[358277249,1744891857295,-500.0,0.00218825,120]
[358277250,1744891857304,-899.89,0.00218825,120]
[358277251,1744891857314,-537.87,0.00218825,120]
[358277252,1744891857323,-710.63,0.00218825,120]
[358277253,1744891857334,-2098.72,0.00218825,120]
[358277254,1744891857343,-16975.05,0.00218825,7]
[358277255,1744891857352,-709.02,0.00218825,120]
[358277256,1744891857362,-1352.71,0.00218825,120]
[358277257,1744891857372,-500.0,0.00218825,120]
[358277258,1744891857382,-500.0,0.00218825,120]
[358277259,1744891857391,-500.0,0.00218825,120]
[358277260,1744891857400,-678.97,0.00218825,120]
[358277261,1744891857409,-635.88,0.00218825,120]
[358277262,1744891857419,-774.58,0.00218825,120]
[358277263,1744891857430,-12698.62,0.00218825,120]
[358277264,1744891857439,-50000.0,0.0022,120]
[358277265,1744891857448,-2995.16,0.0022,60]
[358277266,1744891857458,-602.7,0.00220506,120]
[358277267,1744891857471,-500.0,0.00220506,120]
[358277268,1744891857480,-500.0,0.00222133,120]
[358277269,1744891857490,-706.29,0.00222133,2]
[358277270,1744891857499,-2142.56,0.00222156,120]
[358277271,1744891857508,-622.26,0.00222156,120]
[358277272,1744891857521,-1300.79,0.00222156,120]
[358277273,1744891857531,-500.0,0.00222156,120]
[358277274,1744891857540,-500.0,0.00226257,120]
[358277275,1744891857549,-637.48,0.00226257,120]
[358277276,1744891857560,-500.0,0.00226257,120]
[358277277,1744891857569,-746.856811,0.00226258,120]
[358277278,1744891857578,-500.0,0.00227044,120]
[358277279,1744891857589,-430.47164743,0.00227044,120]
[358277280,1744891857599,-500.0,0.00227044,120]
[358277281,1744891857609,-690.25,0.00227044,120]
[358277282,1744891857618,-502.62,0.00227044,120]
[358277283,1744891857627,-500.0,0.00227044,120]
[358277284,1744891857637,-899.89,0.00227044,120]
[358277285,1744891857647,-537.87,0.00227044,120]
[358277286,1744891857656,-710.63,0.00227044,120]
[358277287,1744891857665,-2098.72,0.00227044,120]
[358277288,1744891857677,-16975.05,0.00227044,7]
[358277289,1744891857688,-709.02,0.00227044,120]
[358277290,1744891857698,-1352.71,0.00227044,120]
[358277291,1744891857707,-500.0,0.00227044,120]
[358277292,1744891857717,-422.57926723,0.00227044,120]
[358277293,1744891857729,-500.0,0.00227044,120]
[358277294,1744891857738,-678.97,0.00227044,120]
[358277295,1744891857747,-635.88,0.00227044,120]
[358277296,1744891857757,-774.58,0.00227044,120]
[358277297,1744891857767,-12698.62,0.00227044,120]
[358277298,1744891857776,-2000.0,0.00227268,16]
[358277299,1744891857785,-6260.0,0.00227853,120]
[358277300,1744891857795,-602.7,0.00228725,120]
[358277301,1744891857804,-500.0,0.00228725,120]
[358277302,1744891857815,-50000.0,0.0023,120]
[358277303,1744891857829,-500.0,0.0023,120]
[358277304,1744891857839,-500.0,0.00230353,120]
[358277305,1744891857850,-706.29,0.00230353,2]
[358277306,1744891857859,-2142.56,0.00230376,120]
[358277307,1744891857868,-622.26,0.00230376,120]
[358277308,1744891857878,-1300.79,0.00230376,120]
[358277309,1744891857888,-500.0,0.00230376,120]
[358277310,1744891857898,-663.84,0.00234475,120]
[358277311,1744891857907,-500.0,0.00234476,120]
[358277312,1744891857917,-637.48,0.00234476,120]
[358277313,1744891857927,-500.0,0.00234476,120]
[358277314,1744891857937,-500.0,0.00235264,120]
[358277315,1744891857947,-311.89,0.00235264,120]
[358277316,1744891857957,-690.25,0.00235264,120]
[358277317,1744891857966,-502.62,0.00235264,120]
[358277318,1744891857975,-500.0,0.00235264,120]
[358277319,1744891857985,-899.89,0.00235264,120]
[358277320,1744891857994,-537.87,0.00235264,120]
[358277321,1744891858004,-710.63,0.00235264,120]
[358277322,1744891858013,-2098.72,0.00235264,120]
[358277323,1744891858023,-16975.05,0.00235264,7]
[358277324,1744891858032,-709.02,0.00235264,120]
[358277325,1744891858042,-1352.71,0.00235264,120]
[358277326,1744891858051,-500.0,0.00235264,120]
[358277327,1744891858061,-500.0,0.00235264,120]
[358277328,1744891858070,-678.97,0.00235264,120]
[358277329,1744891858079,-635.88,0.00235264,120]
[358277330,1744891858089,-774.58,0.00235264,120]
[358277331,1744891858098,-12698.62,0.00235264,120]
[358277332,1744891858107,-602.7,0.00236944,120]
[358277333,1744891858117,-489.40526006,0.00236944,120]
[358277334,1744891858126,-500.0,0.00238572,120]
[358277335,1744891858135,-706.29,0.00238572,2]
[358277336,1744891858145,-2142.56,0.00238595,120]
[358277337,1744891858155,-622.26,0.00238595,120]
[358277338,1744891858164,-1300.79,0.00238595,120]
[358277339,1744891858176,-500.0,0.00238595,120]
[358277340,1744891858186,-1836.0,0.002404,120]
[358277341,1744891858195,-500.0,0.00242696,120]
[358277342,1744891858205,-637.48,0.00242696,120]
[358277343,1744891858214,-280.992,0.00242696,120]
[358277344,1744891858224,-598.19215137,0.00243483,120]
[358277345,1744891858233,-690.25,0.00243483,120]
[358277346,1744891858243,-502.62,0.00243483,120]
[358277347,1744891858252,-500.0,0.00243483,120]
[358277348,1744891858262,-899.89,0.00243483,120]
[358277349,1744891858272,-537.87,0.00243483,120]
[358277350,1744891858282,-710.63,0.00243483,120]
[358277351,1744891858292,-2098.72,0.00243483,120]
[358277352,1744891858302,-16975.05,0.00243483,7]
[358277353,1744891858312,-709.02,0.00243483,120]
[358277354,1744891858322,-1352.71,0.00243483,120]
[358277355,1744891858331,-500.0,0.00243483,120]
[358277356,1744891858341,-500.0,0.00243483,120]
[358277357,1744891858351,-678.97,0.00243483,120]
[358277358,1744891858361,-635.88,0.00243483,120]
[358277359,1744891858371,-774.58,0.00243483,120]
[358277360,1744891858381,-12698.62,0.00243483,120]
[358277361,1744891858390,-602.7,0.00245163,120]
[358277362,1744891858399,-1000.0,0.00246,120]
[358277363,1744891858409,-500.0,0.00246791,120]
[358277364,1744891858418,-706.29,0.00246791,2]
[358277365,1744891858430,-2142.56,0.00246814,120]
[358277366,1744891858439,-622.26,0.00246814,120]
[358277367,1744891858448,-1300.79,0.00246814,120]
[358277368,1744891858458,-500.0,0.00246814,120]
[358277369,1744891858468,-50000.0,0.0025,120]
[358277370,1744891858477,-220.0,0.0025,120]
[358277371,1744891858487,-1200.0,0.0025,2]
[358277372,1744891858496,-817.0,0.0025,90]
[358277373,1744891858506,-10000.0,0.0025,120]
[358277374,1744891858516,-632.3695967,0.00250915,120]
[358277375,1744891858529,-637.48,0.00250915,120]
[358277376,1744891858539,-690.25,0.00251702,120]
[358277377,1744891858548,-502.62,0.00251702,120]
[358277378,1744891858558,-521.78,0.00251702,120]
[358277379,1744891858567,-899.89,0.00251702,120]
[358277380,1744891858578,-537.87,0.00251702,120]
[358277381,1744891858587,-710.63,0.00251702,120]
[358277382,1744891858597,-2098.72,0.00251702,120]
[358277383,1744891858607,-16975.05,0.00251702,7]
[358277384,1744891858617,-709.02,0.00251702,120]
[358277385,1744891858626,-1352.71,0.00251702,120]
[358277386,1744891858636,-154.2977328,0.00251702,120]
[358277387,1744891858645,-372.24,0.00251702,120]
[358277388,1744891858655,-678.97,0.00251702,120]
[358277389,1744891858664,-635.88,0.00251702,120]
[358277390,1744891858674,-774.58,0.00251702,120]
[358277391,1744891858683,-12698.62,0.00251702,120]
[358277392,1744891858693,-602.7,0.00253383,120]
[358277393,1744891858703,-2995.16,0.00254,60]
[358277394,1744891858713,-475.01,0.0025501,120]
[358277395,1744891858728,-706.29,0.0025501,2]
[358277396,1744891858737,-2142.56,0.00255033,120]
[358277397,1744891858747,-622.26,0.00255033,120]
[358277398,1744891858756,-1300.79,0.00255033,120]
[358277399,1744891858766,-500.0,0.00255033,120]
[358277400,1744891858776,-1000.0,0.0025546,120]
[358277401,1744891858785,-5119.97873607,0.00256153,15]
[358277402,1744891858795,-663.84,0.00259133,120]
[358277403,1744891858805,-637.48,0.00259134,120]
[358277404,1744891858815,-690.25,0.00259921,120]
[358277405,1744891858825,-502.62,0.00259921,120]
[358277406,1744891858835,-899.89,0.00259921,120]
[358277407,1744891858845,-537.87,0.00259921,120]
[358277408,1744891858854,-710.63,0.00259921,120]
[358277409,1744891858864,-2098.72,0.00259921,120]
[358277410,1744891858874,-16975.05,0.00259921,7]
[358277411,1744891858883,-709.02,0.00259921,120]
[358277412,1744891858893,-1352.71,0.00259921,120]
[358277413,1744891858903,-678.97,0.00259921,120]
[358277414,1744891858912,-635.88,0.00259921,120]
[358277415,1744891858923,-774.58,0.00259921,120]
[358277416,1744891858933,-12698.62,0.00259921,120]
[358277417,1744891858942,-602.7,0.00261602,120]
[358277418,1744891858952,-2000.0,0.00263,120]
[358277419,1744891858962,-706.29,0.00263229,2]
[358277420,1744891858972,-2142.56,0.00263252,120]
[358277421,1744891858981,-622.26,0.00263252,120]
[358277422,1744891858990,-1300.79,0.00263252,120]
[358277423,1744891859000,-500.0,0.00263252,120]
[358277424,1744891859010,-637.48,0.00267353,120]
[358277425,1744891859019,-199.144491,0.00267987,120]
[358277426,1744891859029,-690.3,0.0026814,120]
[358277427,1744891859039,-502.69,0.0026814,120]
[358277428,1744891859048,-900.030001,0.0026814,120]
[358277429,1744891859058,-537.99600001,0.0026814,120]
[358277430,1744891859068,-710.78,0.0026814,120]
[358277431,1744891859076,-2098.7869851,0.0026814,120]
[358277432,1744891859083,-16975.1142,0.0026814,7]
[358277433,1744891859091,-709.02,0.0026814,120]
[358277434,1744891859097,-1352.81,0.0026814,120]
[358277435,1744891859106,-679.03,0.0026814,120]
[358277436,1744891859115,-635.88467786,0.0026814,120]
[358277437,1744891859125,-774.72854108,0.0026814,120]
[358277438,1744891859134,-12698.8194485,0.0026814,120]
[358277439,1744891859143,-15007.93635971,0.0026861,119]
[358277440,1744891859153,-1000.0,0.00269,120]
[358277441,1744891859249,-602.7,0.00269821,120]
[358277442,1744891859258,-300.0,0.0027,120]
[358277443,1744891859268,-165.82584115,0.0027,120]
[358277444,1744891859277,-50000.0,0.00271198,120]
[358277445,1744891859286,-67074.79335144,0.00271311,120]
[358277446,1744891859296,-706.29,0.00271449,2]
[358277447,1744891859305,-2142.56,0.00271472,120]
[358277448,1744891859315,-622.26,0.00271472,120]
[358277449,1744891859324,-1300.79,0.00271472,120]
[358277450,1744891859334,-500.0,0.00271472,120]
[358277451,1744891859344,-5000.0,0.00272,36]
[358277452,1744891859353,-663.84,0.00272219,120]
[358277453,1744891859363,-37743.20687818,0.0027222,120]
[358277454,1744891859373,-1000.0,0.00273,120]
[358277455,1744891859383,-1000.0,0.002739,120]
[358277456,1744891859395,-1100.0,0.002739,99]
[358277457,1744891859403,-2530.0,0.00273945,120]
[358277458,1744891859412,-781.0,0.00273945,120]
[358277459,1744891859423,-167.44,0.00273961,120]
[358277460,1744891859433,-555.11294205,0.00273972,120]
[358277461,1744891859442,-200.0,0.00273973,120]
[358277462,1744891859452,-50000.0,0.00274,120]
[358277463,1744891859461,-1000.0,0.00274,120]
[358277464,1744891859471,-101186.5112739,0.00274023,30]
[358277465,1744891859480,-3066.6493137,0.00274211,80]
[358277466,1744891859491,-663.84,0.00274399,120]
[358277467,1744891859500,-663.84,0.00274399,120]
[358277468,1744891859509,-500000.0,0.002744,30]
[358277469,1744891859520,-167.44,0.00275331,120]
[358277470,1744891859531,-663.84,0.00275571,120]
[358277471,1744891859541,-637.48,0.00275572,120]
[358277472,1744891859550,-167.44,0.00276701,120]
[358277473,1744891859560,-602.7,0.0027804,120]
[358277474,1744891859570,-167.44,0.00278071,120]
[358277475,1744891859579,-440.0,0.00278959,2]
[358277476,1744891859588,-167.44,0.00279441,120]
[358277477,1744891859598,-706.29,0.00279668,2]
[358277478,1744891859608,-2142.56,0.00279691,120]
[358277479,1744891859617,-622.26,0.00279691,120]
[358277480,1744891859627,-1300.79,0.00279691,120]
[358277481,1744891859637,-226.89,0.00279691,120]
[358277482,1744891859646,-1000.0,0.0028,120]
[358277483,1744891859655,-11142.7470371,0.0028,120]
[358277484,1744891859664,-167.44,0.00280811,120]
[358277485,1744891859674,-167.44,0.00282181,120]
[358277486,1744891859683,-167.44,0.0028355,120]
[358277487,1744891859693,-637.48,0.00283792,120]
[358277488,1744891859704,-2510.3687146,0.00283827,84]
[358277489,1744891859715,-663.84,0.00284409,120]
[358277490,1744891859725,-84729.69583483,0.0028441,120]
[358277491,1744891859734,-167.44,0.0028492,120]
[358277492,1744891859746,-602.7,0.00286259,120]
[358277493,1744891859757,-167.44,0.0028629,120]
[358277494,1744891859767,-167.44,0.0028766,120]
[358277495,1744891859777,-706.29,0.00287887,2]
[358277496,1744891859787,-2142.56,0.0028791,120]
[358277497,1744891859796,-622.26,0.0028791,120]